lending/lending_fUSD_20240710
["ID","MTS","AMOUNT","RATE_DAILY","PERIOD"]
[331591924,1720570256842,-500.0,0.00013996,2]
[331591925,1720570256852,-1428.32,0.00013996,2]
[331591926,1720570256861,-3583.15,0.00013996,2]
[331591927,1720570256871,-1996.1,0.00013996,2]
[331591928,1720570256880,-528.93,0.00013996,2]
[331591929,1720570256890,-1063.69,0.00013996,2]
[331591930,1720570256899,-500.0,0.00013996,2]
[331591931,1720570256909,-500.0,0.00013996,2]
[331591932,1720570256918,-500.0,0.00013996,2]
[331591933,1720570256928,-848.91,0.00013996,2]
[331591934,1720570256938,-500.0,0.00013996,2]
[331591935,1720570256949,-1440.7,0.00013996,2]
[331591936,1720570256960,-6048.84,0.00013996,2]
[331591937,1720570256969,-500.0,0.00013996,2]
[331591938,1720570256979,-1185.7,0.00013996,2]
[331591939,1720570256988,-500.0,0.00013996,2]
[331591940,1720570256998,-549.58,0.00013996,2]
[331591941,1720570257007,-3754.4,0.00013996,2]
[331591942,1720570257016,-151.0,0.00013997,2]
[331591943,1720570257026,-151.0,0.00013997,2]
[331591944,1720570257035,-151.0,0.00013997,2]
[331591945,1720570257044,-151.0,0.00013997,2]
[331591946,1720570257053,-151.0,0.00013997,2]
[331591947,1720570257063,-151.0,0.00013997,2]
[331591948,1720570257072,-151.0,0.00013997,2]
[331591949,1720570257082,-151.0,0.00013997,2]
[331591950,1720570257092,-151.0,0.00013997,2]
[331591951,1720570257102,-151.0,0.00013997,2]
[331591952,1720570257111,-260.220191,0.00013997,2]
[331591953,1720570257120,-151.0,0.00013997,2]
[331591954,1720570257129,-151.0,0.00013997,2]
[331591955,1720570257139,-151.0,0.00013997,2]
[331591956,1720570257148,-151.0,0.00013997,2]
[331591957,1720570257157,-151.0,0.00013997,2]
[331591958,1720570257166,-151.0,0.00013997,2]
[331591959,1720570257175,-151.0,0.00013997,2]
[331591960,1720570257184,-151.0,0.00013997,2]
[331591961,1720570257194,-151.0,0.00013997,2]
[331591962,1720570257202,-245.232349,0.00013997,2]
[331591963,1720570257211,-151.0,0.00013997,2]
[331591964,1720570257223,-151.0,0.00013997,2]
[331591965,1720570257234,-151.0,0.00013997,2]
[331591966,1720570257248,-151.0,0.00013997,2]
[331591967,1720570257257,-151.0,0.00013997,2]
[331591968,1720570257267,-151.0,0.00013997,2]
[331591969,1720570257275,-151.0,0.00013997,2]
[331591970,1720570257285,-151.0,0.00013997,2]
[331591971,1720570257294,-151.0,0.00013997,2]
[331591972,1720570257303,-151.0,0.00013997,2]
[331591973,1720570257312,-279.01604,0.00013997,2]
[331591974,1720570257321,-151.0,0.00013997,2]
[331591975,1720570257330,-151.0,0.00013997,2]
[331591976,1720570257340,-151.0,0.00013997,2]
[331591977,1720570257350,-151.0,0.00013997,2]
[331591978,1720570257359,-151.0,0.00013997,2]
[331591979,1720570257368,-152.521378,0.00013997,2]
[331591980,1720570257378,-155.614805,0.00013997,2]
[331591981,1720570257388,-151.0,0.00013997,2]
[331591982,1720570257399,-151.0,0.00013997,2]
[331591983,1720570257409,-151.0,0.00013997,2]
[331591984,1720570257419,-151.0,0.00013997,2]
[331591985,1720570257428,-151.0,0.00013997,2]
[331591986,1720570257438,-151.0,0.00013997,2]
[331591987,1720570257447,-151.0,0.00013997,2]
[331591988,1720570257457,-151.0,0.00013997,2]
[331591989,1720570257467,-211.086987,0.00013997,2]
[331591990,1720570257477,-500.0,0.00013997,2]
[331591991,1720570257487,-151.0,0.00013997,2]
[331591992,1720570257497,-151.0,0.00013997,2]
[331591993,1720570257507,-151.0,0.00013997,2]
[331591994,1720570257516,-151.0,0.00013997,2]
[331591995,1720570257526,-151.0,0.00013997,2]
[331591996,1720570257535,-151.0,0.00013997,2]
[331591997,1720570257545,-151.0,0.00013997,2]
[331591998,1720570257555,-151.0,0.00013997,2]
[331591999,1720570257565,-151.982227,0.00013997,2]
[331592000,1720570257575,-2525.23,0.00013997,2]
[331592001,1720570257585,-950.3,0.00013997,2]
[331592002,1720570257596,-500.0,0.00013997,2]
[331592003,1720570257843,-151.0,0.00013997,2]
[331592004,1720570257853,-151.0,0.00013997,2]
[331592005,1720570257862,-151.0,0.00013997,2]
[331592006,1720570257876,-151.595646,0.00013997,2]
[331592007,1720570257887,-500.0,0.00013997,2]
[331592008,1720570257896,-151.0,0.00013997,2]
[331592009,1720570257906,-151.0,0.00013997,2]
[331592010,1720570257915,-151.0,0.00013997,2]
[331592011,1720570257925,-151.0,0.00013997,2]
[331592012,1720570257934,-290.03548,0.00013997,2]
[331592013,1720570257944,-1474.41,0.00013997,2]
[331592014,1720570257954,-500.0,0.00013997,2]
[331592015,1720570257964,-3416.49,0.00013997,2]
[331592016,1720570257975,-1378.49,0.00013997,2]
[331592017,1720570257984,-1097.97,0.00013997,2]
[331592018,1720570257994,-2319.35,0.00013997,2]
[331592019,1720570258003,-500.0,0.00013997,2]
[331592020,1720570258015,-500.0,0.00013997,2]
[331592021,1720570258025,-191.798768,0.00013997,2]
[331592022,1720570258034,-191.798768,0.00013997,2]
[331592023,1720570258044,-191.798768,0.00013997,2]
[331592024,1720570258054,-191.798768,0.00013997,2]
[331592025,1720570258066,-191.798768,0.00013997,2]
[331592026,1720570258076,-1384.39,0.00013997,2]
[331592027,1720570258088,-191.798768,0.00013997,2]
[331592028,1720570258099,-191.798768,0.00013997,2]
[331592029,1720570258109,-191.798768,0.00013997,2]
[331592030,1720570258118,-191.798768,0.00013997,2]
[331592031,1720570258128,-191.798768,0.00013997,2]
[331592032,1720570258137,-191.798768,0.00013997,2]
[331592033,1720570258147,-191.798768,0.00013997,2]
[331592034,1720570258157,-191.798768,0.00013997,2]
[331592035,1720570258167,-191.798768,0.00013997,2]
[331592036,1720570258178,-191.798768,0.00013997,2]
[331592037,1720570258187,-191.798768,0.00013997,2]
[331592038,1720570258196,-191.798768,0.00013997,2]
[331592039,1720570258206,-191.798768,0.00013997,2]
[331592040,1720570258216,-191.798768,0.00013997,2]
[331592041,1720570258228,-191.798767,0.00013997,2]
[331592042,1720570258237,-500.0,0.00013997,2]
[331592043,1720570258247,-1171.32,0.00013997,2]
[331592044,1720570258256,-500.0,0.00013997,2]
[331592045,1720570258266,-1459.34,0.00013997,2]
[331592046,1720570258275,-680.53,0.00013997,2]
[331592047,1720570258285,-974.97,0.00013997,2]
[331592048,1720570258295,-500.0,0.00013997,2]
[331592049,1720570258306,-500.0,0.00013997,2]
[331592050,1720570258315,-641.29,0.00013997,2]
[331592051,1720570258325,-840.69,0.00013997,2]
[331592052,1720570258335,-1573.63,0.00013997,2]
[331592053,1720570258345,-500.0,0.00013997,2]
[331592054,1720570258354,-500.0,0.00013997,2]
[331592055,1720570258364,-500.0,0.00013997,2]
[331592056,1720570258374,-500.0,0.00013997,2]
[331592057,1720570258383,-1286.27,0.00013997,2]
[331592058,1720570258393,-500.0,0.00013997,2]
[331592059,1720570258402,-151.0,0.00013997,2]
[331592060,1720570258412,-151.404425,0.00013997,2]
[331592061,1720570258421,-500.0,0.00013997,2]
[331592062,1720570258431,-500.0,0.00013997,2]
[331592063,1720570258441,-603.22,0.00013997,2]
[331592064,1720570258451,-151.0,0.00013997,2]
[331592065,1720570258461,-151.0,0.00013997,2]
[331592066,1720570258472,-500.0,0.00013997,2]
[331592067,1720570258482,-151.0,0.00013997,2]
[331592068,1720570258491,-151.0,0.00013997,2]
[331592069,1720570258501,-151.0,0.00013997,2]
[331592070,1720570258511,-151.0,0.00013997,2]
[331592071,1720570258521,-151.0,0.00013997,2]
[331592072,1720570258532,-151.0,0.00013997,2]
[331592073,1720570258542,-151.0,0.00013997,2]
[331592074,1720570258552,-151.0,0.00013997,2]
[331592075,1720570258563,-151.0,0.00013997,2]
[331592076,1720570258572,-151.0,0.00013997,2]
[331592077,1720570258586,-151.0,0.00013997,2]
[331592078,1720570258596,-151.0,0.00013997,2]
[331592079,1720570258606,-151.0,0.00013997,2]
[331592080,1720570258616,-2585.0,0.00013997,2]
[331592081,1720570258625,-151.0,0.00013997,2]
[331592082,1720570258636,-151.0,0.00013997,2]
[331592083,1720570258646,-151.0,0.00013997,2]
[331592084,1720570258656,-151.0,0.00013997,2]
[331592085,1720570258667,-151.0,0.00013997,2]
[331592086,1720570258677,-151.0,0.00013997,2]
[331592087,1720570258687,-252.702742,0.00013997,2]
[331592088,1720570258697,-151.0,0.00013997,2]
[331592089,1720570258706,-156.108849,0.00013997,2]
[331592090,1720570258717,-1061.33,0.00013997,2]
[331592091,1720570258727,-900.88,0.00013997,2]
[331592092,1720570258736,-151.0,0.00013997,2]
[331592093,1720570258746,-500.0,0.00013997,2]
[331592094,1720570258758,-151.176414,0.00013997,2]
[331592095,1720570258768,-682.4,0.00013997,2]
[331592096,1720570258779,-383.04755545,0.00013997,2]
[331592097,1720570258789,-500.57,0.00013997,2]
[331592098,1720570258801,-1785.01,0.00013997,2]
[331592099,1720570258811,-500.0,0.00013997,2]
[331592100,1720570258821,-500.0,0.00013997,2]
[331592101,1720570258832,-500.0,0.00013997,2]
[331592102,1720570258842,-205.89195087,0.00013997,2]
[331592103,1720570258852,-2259.79,0.00013997,2]
[331592104,1720570258861,-500.0,0.00013997,2]
[331592105,1720570258871,-500.0,0.00013997,2]
[331592106,1720570258881,-500.0,0.00013997,2]
[331592107,1720570258891,-500.0,0.00013997,2]
[331592108,1720570258900,-1583.13,0.00013997,2]
[331592109,1720570258910,-187.638702,0.00013997,2]
[331592110,1720570258919,-187.638702,0.00013997,2]
[331592111,1720570258929,-187.638702,0.00013997,2]
[331592112,1720570258938,-187.638702,0.00013997,2]
[331592113,1720570258948,-500.0,0.00013997,2]
[331592114,1720570258958,-1861.49,0.00013997,2]
[331592115,1720570258969,-151.0,0.00013997,2]
[331592116,1720570258979,-500.0,0.00013997,2]
[331592117,1720570258988,-151.0,0.00013997,2]
[331592118,1720570258998,-187.638702,0.00013997,2]
[331592119,1720570259008,-151.0,0.00013997,2]
[331592120,1720570259017,-187.638702,0.00013997,2]
[331592121,1720570259027,-500.0,0.00013997,2]
[331592122,1720570259037,-187.638702,0.00013997,2]
[331592123,1720570259047,-151.0,0.00013997,2]
[331592124,1720570259057,-187.638702,0.00013997,2]
[331592125,1720570259066,-151.0,0.00013997,2]
[331592126,1720570259076,-151.0,0.00013997,2]
[331592127,1720570259086,-151.427634,0.00013997,2]
[331592128,1720570259097,-187.638702,0.00013997,2]
[331592129,1720570259108,-151.0,0.00013997,2]
[331592130,1720570259118,-187.638702,0.00013997,2]
[331592131,1720570259127,-187.638702,0.00013997,2]
[331592132,1720570259137,-187.638702,0.00013997,2]
[331592133,1720570259147,-151.0,0.00013997,2]
[331592134,1720570259156,-151.0,0.00013997,2]
[331592135,1720570259166,-170.128268,0.00013997,2]
[331592136,1720570259175,-151.0,0.00013997,2]
[331592137,1720570259189,-187.638702,0.00013997,2]
[331592138,1720570259198,-187.638702,0.00013997,2]
[331592139,1720570259208,-151.0,0.00013997,2]
[331592140,1720570259218,-187.638702,0.00013997,2]
[331592141,1720570259228,-187.638702,0.00013997,2]
[331592142,1720570259238,-187.638702,0.00013997,2]
[331592143,1720570259247,-247.19804,0.00013997,2]
[331592144,1720570259257,-187.638702,0.00013997,2]
[331592145,1720570259267,-500.0,0.00013997,2]
[331592146,1720570259276,-187.638702,0.00013997,2]
[331592147,1720570259286,-187.638705,0.00013997,2]
[331592148,1720570259298,-500.0,0.00013997,2]
[331592149,1720570259308,-500.0,0.00013997,2]
[331592150,1720570259318,-942.15,0.00013997,2]
[331592151,1720570259327,-2077.41,0.00013997,2]
[331592152,1720570259337,-500.0,0.00013997,2]
[331592153,1720570259347,-1728.99,0.00013997,2]
[331592154,1720570259357,-151.950132,0.00013997,2]
[331592155,1720570259367,-500.0,0.00013997,2]
[331592156,1720570259377,-151.0,0.00013997,2]
[331592157,1720570259388,-151.0,0.00013997,2]
[331592158,1720570259398,-151.0,0.00013997,2]
[331592159,1720570259409,-151.0,0.00013997,2]
[331592160,1720570259418,-151.0,0.00013997,2]
[331592161,1720570259428,-151.0,0.00013997,2]
[331592162,1720570259437,-151.0,0.00013997,2]
[331592163,1720570259447,-222.212261,0.00013997,2]
[331592164,1720570259456,-1244.47,0.00013997,2]
[331592165,1720570259466,-233.618664,0.00013997,2]
[331592166,1720570259477,-233.618664,0.00013997,2]
[331592167,1720570259486,-233.618664,0.00013997,2]
[331592168,1720570259496,-233.618664,0.00013997,2]
[331592169,1720570259506,-233.618664,0.00013997,2]
[331592170,1720570259515,-1030.37,0.00013997,2]
[331592171,1720570259525,-233.618664,0.00013997,2]
[331592172,1720570259535,-233.618664,0.00013997,2]
[331592173,1720570259544,-233.618664,0.00013997,2]
[331592174,1720570259554,-233.618664,0.00013997,2]
[331592175,1720570259563,-500.0,0.00013997,2]
[331592176,1720570259572,-233.618664,0.00013997,2]
[331592177,1720570259582,-233.618664,0.00013997,2]
[331592178,1720570259591,-233.618664,0.00013997,2]
[331592179,1720570259600,-233.618664,0.00013997,2]
[331592180,1720570259609,-233.618664,0.00013997,2]
[331592181,1720570259619,-233.618664,0.00013997,2]
[331592182,1720570259628,-2156.9,0.00013997,2]
[331592183,1720570259638,-233.618664,0.00013997,2]
[331592184,1720570259647,-233.618664,0.00013997,2]
[331592185,1720570259656,-233.618664,0.00013997,2]
[331592186,1720570259665,-233.618664,0.00013997,2]
[331592187,1720570259674,-233.618659,0.00013997,2]
[331592188,1720570259683,-1153.25,0.00013997,2]
[331592189,1720570259693,-500.0,0.00013997,2]
[331592190,1720570259702,-151.0,0.00013997,2]
[331592191,1720570259711,-151.0,0.00013997,2]
[331592192,1720570259722,-151.0,0.00013997,2]
[331592193,1720570259731,-151.0,0.00013997,2]
[331592194,1720570259740,-151.0,0.00013997,2]
[331592195,1720570259750,-500.0,0.00013997,2]
[331592196,1720570259759,-151.0,0.00013997,2]
[331592197,1720570259768,-151.0,0.00013997,2]
[331592198,1720570259777,-151.0,0.00013997,2]
[331592199,1720570259786,-2495.5,0.00013997,2]
[331592200,1720570259795,-663.25,0.00013997,2]
[331592201,1720570259805,-151.0,0.00013997,2]
[331592202,1720570259814,-151.0,0.00013997,2]
[331592203,1720570259824,-151.0,0.00013997,2]
[331592204,1720570259833,-151.0,0.00013997,2]
[331592205,1720570259843,-151.0,0.00013997,2]
[331592206,1720570259852,-287.7201,0.00013997,2]
[331592207,1720570259861,-500.0,0.00013997,2]
[331592208,1720570259871,-745.31,0.00013997,2]
[331592209,1720570259880,-151.0,0.00013997,2]
[331592210,1720570259890,-151.0,0.00013997,2]
[331592211,1720570259899,-151.0,0.00013997,2]
[331592212,1720570259908,-151.0,0.00013997,2]
[331592213,1720570259918,-151.0,0.00013997,2]
[331592214,1720570259927,-151.0,0.00013997,2]
[331592215,1720570259937,-152.085724,0.00013997,2]
[331592216,1720570259946,-3074.91,0.00013997,2]
[331592217,1720570259956,-500.0,0.00013997,2]
[331592218,1720570260454,-500.0,0.00013997,2]
[331592219,1720570260464,-1371.29,0.00013997,2]
[331592220,1720570260476,-500.0,0.00013997,2]
[331592221,1720570260486,-155.416023,0.00013997,2]
[331592222,1720570260495,-155.416023,0.00013997,2]
[331592223,1720570260507,-155.416023,0.00013997,2]
[331592224,1720570260517,-500.0,0.00013997,2]
[331592225,1720570260526,-500.0,0.00013997,2]
[331592226,1720570260535,-155.416023,0.00013997,2]
[331592227,1720570260544,-155.416023,0.00013997,2]
[331592228,1720570260553,-155.416023,0.00013997,2]
[331592229,1720570260563,-155.416023,0.00013997,2]
[331592230,1720570260572,-151.0,0.00013997,2]
[331592231,1720570260581,-155.416023,0.00013997,2]
[331592232,1720570260590,-151.0,0.00013997,2]
[331592233,1720570260599,-1867.17,0.00013997,2]
[331592234,1720570260609,-151.0,0.00013997,2]
[331592235,1720570260618,-151.0,0.00013997,2]
[331592236,1720570260627,-155.416023,0.00013997,2]
[331592237,1720570260636,-151.0,0.00013997,2]
[331592238,1720570260645,-155.416023,0.00013997,2]
[331592239,1720570260655,-151.0,0.00013997,2]
[331592240,1720570260664,-500.0,0.00013997,2]
[331592241,1720570260673,-155.416023,0.00013997,2]
[331592242,1720570260683,-155.416023,0.00013997,2]
[331592243,1720570260692,-151.0,0.00013997,2]
[331592244,1720570260701,-155.416023,0.00013997,2]
[331592245,1720570260710,-155.416023,0.00013997,2]
[331592246,1720570260721,-1412.94,0.00013997,2]
[331592247,1720570260733,-155.416023,0.00013997,2]
[331592248,1720570260742,-155.416023,0.00013997,2]
[331592249,1720570260751,-1081.77,0.00013997,2]
[331592250,1720570260760,-151.0,0.00013997,2]
[331592251,1720570260769,-151.0,0.00013997,2]
[331592252,1720570260779,-245.495,0.00013997,2]
[331592253,1720570260788,-1622.25,0.00013997,2]
[331592254,1720570260797,-500.0,0.00013997,2]
[331592255,1720570260806,-3126.0,0.00013997,2]
[331592256,1720570260815,-892.14,0.00013997,2]
[331592257,1720570260825,-1156.63,0.00013997,2]
[331592258,1720570260834,-500.0,0.00013997,2]
[331592259,1720570260844,-166.371804,0.00013997,2]
[331592260,1720570260853,-2975.03,0.00013997,2]
[331592261,1720570260863,-3519.78,0.00013997,2]
[331592262,1720570260873,-572.53727638,0.00013997,2]
[331592263,1720570260882,-633.95,0.00013997,2]
[331592264,1720570260892,-151.0,0.00013997,2]
[331592265,1720570260901,-151.0,0.00013997,2]
[331592266,1720570260911,-151.0,0.00013997,2]
[331592267,1720570260920,-151.0,0.00013997,2]
[331592268,1720570260930,-151.0,0.00013997,2]
[331592269,1720570260939,-151.0,0.00013997,2]
[331592270,1720570260948,-151.33253,0.00013997,2]
[331592271,1720570260958,-151.33253,0.00013997,2]
[331592272,1720570260967,-151.0,0.00013997,2]
[331592273,1720570260985,-1837.71,0.00013997,2]
[331592274,1720570260994,-151.33253,0.00013997,2]
[331592275,1720570261003,-151.332532,0.00013997,2]
[331592276,1720570261013,-151.0,0.00013997,2]
[331592277,1720570261025,-171.677464,0.00013997,2]
[331592278,1720570261034,-500.0,0.00013997,2]
[331592279,1720570261044,-500.0,0.00013997,2]
[331592280,1720570261053,-539.35,0.00013997,2]
[331592281,1720570261062,-500.0,0.00013997,2]
[331592282,1720570261074,-578.557397,0.00013997,2]
[331592283,1720570261084,-578.557397,0.00013997,2]
[331592284,1720570261095,-578.557397,0.00013997,2]
[331592285,1720570261104,-578.557388,0.00013997,2]
[331592286,1720570261113,-500.0,0.00013997,2]
[331592287,1720570261123,-1536.52,0.00013997,2]
[331592288,1720570261133,-500.0,0.00013997,2]
[331592289,1720570261143,-500.0,0.00013997,2]
[331592290,1720570261153,-2871.72,0.00013997,2]
[331592291,1720570261162,-2021.84,0.00013997,2]
[331592292,1720570261172,-151.0,0.00013997,2]
[331592293,1720570261182,-151.0,0.00013997,2]
[331592294,1720570261191,-504.82,0.00013997,2]
[331592295,1720570261201,-788.37,0.00013997,2]
[331592296,1720570261210,-151.0,0.00013997,2]
[331592297,1720570261222,-1718.81,0.00013997,2]
[331592298,1720570261232,-151.0,0.00013997,2]
[331592299,1720570261241,-500.0,0.00013997,2]
[331592300,1720570261251,-500.0,0.00013997,2]
[331592301,1720570261259,-1285.8,0.00013997,2]
[331592302,1720570261269,-151.0,0.00013997,2]
[331592303,1720570261278,-151.0,0.00013997,2]
[331592304,1720570261287,-500.0,0.00013997,2]
[331592305,1720570261297,-500.0,0.00013997,2]
[331592306,1720570261307,-1215.29,0.00013997,2]
[331592307,1720570261316,-1142.28,0.00013997,2]
[331592308,1720570261326,-500.0,0.00013997,2]
[331592309,1720570261336,-500.0,0.00013997,2]
[331592310,1720570261345,-200.530782,0.00013997,2]
[331592311,1720570261355,-3586.08,0.00013997,2]
[331592312,1720570261365,-200.530782,0.00013997,2]
[331592313,1720570261374,-590.47,0.00013997,2]
[331592314,1720570261384,-763.97,0.00013997,2]
[331592315,1720570261393,-200.530782,0.00013997,2]
[331592316,1720570261403,-200.530776,0.00013997,2]
[331592317,1720570261413,-374.6371805,0.00013997,2]
[331592318,1720570261422,-1155.79,0.00013997,2]
[331592319,1720570261431,-550.87,0.00013997,2]
[331592320,1720570261440,-549.86,0.00013997,2]
[331592321,1720570261450,-500.0,0.00013997,2]
[331592322,1720570261460,-706.75,0.00013997,2]
[331592323,1720570261472,-1914.6,0.00013997,2]
[331592324,1720570261481,-1915.74,0.00013997,2]
[331592325,1720570261490,-500.0,0.00013997,2]
[331592326,1720570261499,-1515.28,0.00013997,2]
[331592327,1720570261509,-680.59,0.00013997,2]
[331592328,1720570261519,-902.98,0.00013997,2]
[331592329,1720570261529,-2651.67,0.00013997,2]
[331592330,1720570261539,-2093.46,0.00013997,2]
[331592331,1720570261549,-500.0,0.00013997,2]
[331592332,1720570261558,-1531.35,0.00013997,2]
[331592333,1720570261567,-736.96,0.00013997,2]
[331592334,1720570261576,-501.13,0.00013997,2]
[331592335,1720570261586,-500.0,0.00013997,2]
[331592336,1720570261595,-690.34,0.00013997,2]
[331592337,1720570261605,-1249.4,0.00013997,2]
[331592338,1720570261615,-2060.63,0.00013997,2]
[331592339,1720570261624,-2806.88,0.00013997,2]
[331592340,1720570261634,-500.0,0.00013997,2]
[331592341,1720570261643,-1579.34,0.00013997,2]
[331592342,1720570261653,-2871.45,0.00013997,2]
[331592343,1720570261662,-2312.31,0.00013997,2]
[331592344,1720570261671,-529.73,0.00013997,2]
[331592345,1720570261681,-686.87,0.00013997,2]
[331592346,1720570261691,-574.53,0.00013997,2]
[331592347,1720570261701,-1280.58,0.00013997,2]
[331592348,1720570261710,-1408.04,0.00013997,2]
[331592349,1720570261722,-1547.38,0.00013997,2]
[331592350,1720570261731,-500.0,0.00013997,2]
[331592351,1720570261740,-500.0,0.00013997,2]
[331592352,1720570261750,-1440.94,0.00013997,2]
[331592353,1720570261759,-506.99,0.00013997,2]
[331592354,1720570261768,-500.0,0.00013997,2]
[331592355,1720570261778,-500.0,0.00013997,2]
[331592356,1720570261788,-1276.36,0.00013997,2]
[331592357,1720570261797,-2002.33,0.00013997,2]
[331592358,1720570261808,-1199.23,0.00013997,2]
[331592359,1720570261817,-690.91,0.00013997,2]
[331592360,1720570261829,-521.43,0.00013997,2]
[331592361,1720570261839,-500.0,0.00013997,2]
[331592362,1720570261850,-500.0,0.00013997,2]
[331592363,1720570261860,-2392.12,0.00013997,2]
[331592364,1720570261869,-591.68,0.00013997,2]
[331592365,1720570261880,-860.59,0.00013997,2]
[331592366,1720570261890,-500.0,0.00013997,2]
[331592367,1720570261900,-166.11080686,0.00013997,2]
[331592368,1720570261910,-1507.69,0.00013997,2]
[331592369,1720570261921,-500.0,0.00013997,6]
[331592370,1720570261931,-686.41,0.00013997,2]
[331592371,1720570261941,-500.0,0.00013997,7]
[331592372,1720570261951,-2688.02,0.00013997,2]
[331592373,1720570261963,-500.0,0.00013997,2]
[331592374,1720570261975,-745.2,0.00013997,2]
[331592375,1720570261985,-1361.01,0.00013997,2]
[331592376,1720570261994,-500.0,0.00013997,2]
[331592377,1720570262003,-1291.39,0.00013997,2]
[331592378,1720570262012,-500.0,0.00013997,2]
[331592379,1720570262022,-500.0,0.00013997,2]
[331592380,1720570262032,-500.0,0.00013997,2]
[331592381,1720570262042,-500.0,0.00013997,2]
[331592382,1720570262051,-500.0,0.00013997,2]
[331592383,1720570262062,-3301.42,0.00013997,2]
[331592384,1720570262072,-503.52,0.00013997,2]
[331592385,1720570262082,-1050.63,0.00013997,2]
[331592386,1720570262095,-500.0,0.00013997,2]
[331592387,1720570262104,-500.0,0.00013997,2]
[331592388,1720570262114,-500.0,0.00013997,2]
[331592389,1720570262123,-714.37,0.00013997,2]
[331592390,1720570262133,-597.84,0.00013997,2]
[331592391,1720570262143,-789.18,0.00013997,2]
[331592392,1720570262152,-881.62,0.00013997,2]
[331592393,1720570262162,-500.0,0.00013997,2]
[331592394,1720570262171,-500.0,0.00013997,2]
[331592395,1720570262181,-964.5,0.00013997,2]
[331592396,1720570262190,-500.0,0.00013997,2]
[331592397,1720570262200,-1352.6,0.00013997,2]
[331592398,1720570262210,-1005.18,0.00013997,2]
[331592399,1720570262222,-500.0,0.00013997,2]
[331592400,1720570262231,-500.0,0.00013997,2]
[331592401,1720570262241,-1022.99,0.00013997,2]
[331592402,1720570262251,-3483.55,0.00013997,2]
[331592403,1720570262262,-763.15,0.00013997,2]
[331592404,1720570262272,-2704.3,0.00013997,2]
[331592405,1720570262281,-184.13309361,0.00013997,2]
[331592406,1720570262292,-500.0,0.00013997,2]
[331592407,1720570262301,-500.0,0.00013997,2]
[331592408,1720570262311,-1147.48,0.00013997,2]
[331592409,1720570262320,-500.0,0.00013997,2]
[331592410,1720570262330,-795.91,0.00013997,2]
[331592411,1720570262339,-872.39,0.00013997,2]
[331592412,1720570262349,-2820.85,0.00013997,2]
[331592413,1720570262358,-2466.52,0.00013997,2]
[331592414,1720570262367,-660.54,0.00013997,2]
[331592415,1720570262376,-3033.45,0.00013997,2]
[331592416,1720570262386,-1694.08,0.00013997,2]
[331592417,1720570262395,-1535.37,0.00013997,2]
[331592418,1720570262404,-559.0,0.00013997,2]
[331592419,1720570262414,-957.83,0.00013997,2]
[331592420,1720570262424,-1566.32,0.00013997,2]
[331592421,1720570262433,-1478.03,0.00013997,2]
[331592422,1720570262442,-1478.03,0.00013997,3]
[331592423,1720570262452,-1478.03,0.00013997,4]